Workbook

Sheet List1
A1: FVE | B1: Instalováno kWp | C1: Bytů | D1: Sluneční svit [4] | F1: Měnič | H1: Beterie [1] | J1: Cena za kW [2] | L1: Celková cana za fotovoltaiku | N1: Zaplatíme za fotovoltaiku | R1: Dotace | T1: Výše | V1: V Praze 19 .4. 2024
B2: 0.8 | C2: 1 | D2: 0.41 | F2: 1 kW | H2: 0 | I2: kWh | J2: 9.2 | L2: =(((B2*10000)+(H2*9000)+8000)*1) -> 16000 | N2: =L2-R2 -> 16000 | R2: =L2*T2 -> 0 | T2: 0
A3: Výchozí: | B3: 0.8 | D3: 0.41 | H3: 0 | J3: 9.2 | T3: 0
B4: =1.315 -> 1.315 | C4: korektor | D4: 4.9 | E4: LEDEN | H4: Wh | I4: Wh | J4: Wh
A5: Hodiny | B5: hodinová spotřeba | D5: FVE V | E5: FVE Z | F5: FVE | H5: PRE | I5: CAP.Bat. | J5: spotřebovaná z FVE | L5: Odběr | M5: FVE | N5: Baterie
A6: 0 | B6: =60*B4 -> 78.9 | C6: Wh | G6: Wh | H6: =B6-F6 -> 78.9 | I6: 0 | J6: =IF((IF(F6>B6,B6,F6)+(I29-I6))>0,(IF(F6>B6,B6,F6)+(I29-I6)),0) -> 0
A7: 1 | B7: =50*B4 -> 65.75 | C7: Wh | G7: Wh | H7: =B7-F7 -> 65.75 | I7: =IF(IF(H7<0,(I6+(H7*-1)),IF(H7<I6,I6-H7,IF(H7>I6,0,I6)))>($H$2*1000),($H$2*1000),(IF(H7<0,(I6+(H7*-1)),IF(H7<I6,I6-H7,IF(H7>I6,0,I6))))) -> 0 | J7: =IF((IF(F7>B7,B7,F7)+(I7-I6))>0,(IF(F7>B7,B7,F7)+(I7-I6)),0) -> 0
A8: 2 | B8: =B4*105 -> 138.075 | C8: Wh | G8: Wh | H8: 138.075 | I8: 0 | J8: 0
A9: 3 | B9: =B4*105 -> 138.075 | C9: Wh | G9: Wh | H9: 138.075 | I9: 0 | J9: 0
A10: 4 | B10: =B4*70 -> 92.05 | C10: Wh | D10: =IF($D$2<0.5,(D4*80/50*$B$2)*($D$2+0.2),(D4*80/50*$B$2)) -> 3.82592 | F10: =D10+E10 -> 3.82592 | G10: Wh | H10: 88.22408 | I10: 0 | J10: 3.82592
A11: 5 | B11: =B4*115 -> 151.225 | C11: Wh | D11: =IF($D$2<0.5,(D4*180/50*$B$2)*($D$2+0.2),(D4*180/50*$B$2*$D$2)) -> 8.60832 | F11: =D11+E11 -> 8.60832 | G11: Wh | H11: 142.61668 | I11: 0 | J11: 8.60832
A12: 6 | B12: =B4*200 -> 263 | C12: Wh | D12: =IF($D$2<0.5,(D4*250/50*$B$2)*($D$2+0.2),(D4*250/50*$B$2)) -> 11.956 | F12: 11.956 | G12: Wh | H12: 251.044 | I12: 0 | J12: 11.956
A13: 7 | B13: =210*B4 -> 276.15 | C13: Wh | D13: =IF($D$2<0.5,(D4*320/50*$B$2)*($D$2+0.2),(D4*320/50*$B$2*$D$2)) -> 15.30368 | E13: =IF($D$2<0.5,(D4*80/50*$B$2)*($D$2+0.2),(D4*80/50*$B$2*$D$2)) -> 3.82592 | F13: 19.1296 | G13: Wh | H13: 257.0204 | I13: 0 | J13: 19.1296
A14: 8 | B14: =B4*165 -> 216.975 | C14: Wh | D14: =IF($D$2<0.5,(D4*400/50*$B$2)*($D$2+0.2),(D4*400/50*$B$2)) -> 19.1296 | E14: =IF($D$2<0.5,(D4*180/50*$B$2)*($D$2+0.2),(D4*180/50*$B$2)) -> 8.60832 | F14: 27.73792 | G14: Wh | H14: 189.23708 | I14: 0 | J14: 27.73792
A15: 9 | B15: =B4*210 -> 276.15 | C15: Wh | D15: =IF($D$2<0.5,(D4*460/50*$B$2)*($D$2+0.2),(D4*460/50*$B$2*$D$2)) -> 21.99904 | E15: =IF($D$2<0.5,(D4*250/50*$B$2)*($D$2+0.2),(D4*250/50*$B$2*$D$2)) -> 11.956 | F15: 33.95504 | G15: Wh | H15: 242.19496 | I15: 0 | J15: 33.95504
A16: 10 | B16: =B4*235 -> 309.025 | C16: Wh | D16: =IF($D$2<0.5,(D4*470/50*$B$2)*($D$2+0.2),(D4*470/50*$B$2)) -> 22.47728 | E16: =IF($D$2<0.5,(D4*320/50*$B$2)*($D$2+0.2),(D4*320/50*$B$2)) -> 15.30368 | F16: 37.78096 | G16: Wh | H16: 271.24404 | I16: 0 | J16: 37.78096
A17: 11 | B17: =B4*250 -> 328.75 | C17: Wh | D17: =IF($D$2<0.5,(D4*470/50*$B$2)*($D$2+0.2),(D4*470/50*$B$2*$D$2)) -> 22.47728 | E17: =IF($D$2<0.5,(D4*400/50*$B$2)*($D$2+0.2),(D4*400/50*$B$2*$D$2)) -> 19.1296 | F17: 41.60688 | G17: Wh | H17: 287.14312 | I17: 0 | J17: 41.60688
A18: 12 | B18: =B4*300 -> 394.5 | C18: Wh | D18: =IF($D$2<0.5,(D4*460/50*$B$2)*($D$2+0.2),(D4*460/50*$B$2)) -> 21.99904 | E18: =IF($D$2<0.5,(D4*460/50*$B$2)*($D$2+0.2),(D4*460/50*$B$2)) -> 21.99904 | F18: 43.99808 | G18: Wh | H18: 350.50192 | I18: 0 | J18: 43.99808
A19: 13 | B19: =B4*325 -> 427.375 | C19: Wh | D19: =IF($D$2<0.5,(D4*460/50*$B$2)*($D$2+0.2),(D4*460*$D$2/50*$B$2)) -> 21.99904 | E19: =IF($D$2<0.5,(D4*470/50*$B$2)*($D$2+0.2),(D4*470/50*$B$2*$D$2)) -> 22.47728 | F19: 44.47632 | G19: Wh | H19: 382.89868 | I19: 0 | J19: 44.47632
A20: 14 | B20: =B4*200 -> 263 | C20: Wh | D20: =IF($D$2<0.5,(D4*400/50*$B$2)*($D$2+0.2),(D4*400/50*$B$2)) -> 19.1296 | E20: =IF($D$2<0.5,(D4*470/50*$B$2)*($D$2+0.2),(D4*470/50*$B$2)) -> 22.47728 | F20: 41.60688 | G20: Wh | H20: 221.39312 | I20: 0 | J20: 41.60688
A21: 15 | B21: =B4*160 -> 210.4 | C21: Wh | D21: =IF($D$2<0.5,(D4*320/50*$B$2)*($D$2+0.2),(D4*320/50*$B$2*$D$2)) -> 15.30368 | E21: =IF($D$2<0.5,(D4*460/50*$B$2)*($D$2+0.2),(D4*460/50*$B$2*$D$2)) -> 21.99904 | F21: 37.30272 | G21: Wh | H21: 173.09728 | I21: 0 | J21: 37.30272
A22: 16 | B22: =B4*175 -> 230.125 | C22: Wh | D22: =IF($D$2<0.5,(D4*250/50*$B$2)*($D$2+0.2),(D4*250/50*$B$2)) -> 11.956 | E22: =IF($D$2<0.5,(D4*460/50*$B$2)*($D$2+0.2),(D4*460/50*$B$2)) -> 21.99904 | F22: 33.95504 | G22: Wh | H22: 196.16996 | I22: 0 | J22: 33.95504
A23: 17 | B23: =B4*210 -> 276.15 | C23: Wh | D23: =IF($D$2<0.5,(D4*180/50*$B$2)*($D$2+0.2),(D4*180/50*$B$2*$D$2)) -> 8.60832 | E23: =IF($D$2<0.5,(D4*400/50*$B$2)*($D$2+0.2),(D4*400/50*$B$2*$D$2)) -> 19.1296 | F23: 27.73792 | G23: Wh | H23: 248.41208 | I23: 0 | J23: 27.73792
A24: 18 | B24: =B4*205 -> 269.575 | C24: Wh | D24: =IF($D$2<0.5,(D4*80/50*$B$2)*($D$2+0.2),(D4*80/50*$B$2)) -> 3.82592 | E24: =IF($D$2<0.5,(D4*320/50*$B$2)*($D$2+0.2),(D4*320/50*$B$2)) -> 15.30368 | F24: 19.1296 | G24: Wh | H24: 250.4454 | I24: 0 | J24: 19.1296
A25: 19 | B25: =B4*275 -> 361.625 | C25: Wh | E25: =IF($D$2<0.5,(D4*250/50*$B$2)*($D$2+0.2),(D4/50*$B$2*250*$D$2)) -> 11.956 | F25: 11.956 | G25: Wh | H25: 349.669 | I25: 0 | J25: 11.956
A26: 20 | B26: =B4*350 -> 460.25 | C26: Wh | E26: =IF($D$2<0.5,(D4*180/50*$B$2)*($D$2+0.2),(D4*180/50*$B$2)) -> 8.60832 | F26: 8.60832 | G26: Wh | H26: 451.64168 | I26: 0 | J26: =IF((IF(F26>B26,B26,F26)+(I26-I25))>0,(IF(F26>B26,B26,F26)+(I26-I25)),0) -> 8.60832
A27: 21 | B27: =B4*400 -> 526 | C27: Wh | E27: =IF($D$2<0.5,(D4*80/50*$B$2)*($D$2+0.2),(D4*80*$D$2/50*$B$2)) -> 3.82592 | F27: 3.82592 | G27: Wh | H27: 522.17408 | I27: 0 | J27: =IF((IF(F27>B27,B27,F27)+(I27-I26))>0,(IF(F27>B27,B27,F27)+(I27-I26)),0) -> 3.82592
A28: 22 | B28: =B4*325 -> 427.375 | C28: Wh | G28: Wh | H28: 427.375 | I28: 0 | J28: 0
A29: 23 | B29: =B4*100 -> 131.5 | C29: Wh | G29: Wh | H29: 131.5 | I29: 0 | J29: 0
A30: Za den: | B30: =SUM(B6:B29)/1000 -> 6.312 | C30: kWh | E30: Za den: | F30: =SUM(F10:F29)/1000 -> 0.45719744 | G30: kWh | I30: Za den: | J30: =SUM(J6:J29)/1000 -> 0.45719744 | K30: kWh
A31: Měsíčně: | B31: =B30*30.5/1000 -> 0.192516 | C31: MWh | E31: Měsíčně: | F31: =F30*30.5/1000 -> 0.01394452192 | G31: MWh | I31: Měsíčně: | J31: =J30*30.5/1000 -> 0.01394452192 | K31: MWh
B34: =1.315 -> 1.315 | C34: korektor | D34: 7.95 | E34: ÚNOR | H34: Wh | I34: Wh | J34: Wh
A35: Hodiny | B35: hodinová spotřeba | D35: FVE V | E35: FVE Z | F35: FVE | H35: PRE | I35: CAP.Bat. | J35: spotřebovaná z FVE | L35: Odběr | M35: FVE | N35: Baterie
A36: 0 | B36: =60*B34 -> 78.9 | C36: Wh | G36: Wh | H36: =B36-F36 -> 78.9 | I36: 0 | J36: =IF((IF(F36>B36,B36,F36)+(I59-I36))>0,(IF(F36>B36,B36,F36)+(I59-I36)),0) -> 0
A37: 1 | B37: =50*B34 -> 65.75 | C37: Wh | G37: Wh | H37: =B37-F37 -> 65.75 | I37: =IF(IF(H37<0,(I36+(H37*-1)),IF(H37<I36,I36-H37,IF(H37>I36,0,I36)))>($H$2*1000),($H$2*1000),(IF(H37<0,(I36+(H37*-1)),IF(H37<I36,I36-H37,IF(H37>I36,0,I36))))) -> 0 | J37: =IF((IF(F37>B37,B37,F37)+(I37-I36))>0,(IF(F37>B37,B37,F37)+(I37-I36)),0) -> 0
A38: 2 | B38: =B34*105 -> 138.075 | C38: Wh | G38: Wh | H38: 138.075 | I38: 0 | J38: 0
A39: 3 | B39: =B34*105 -> 138.075 | C39: Wh | G39: Wh | H39: 138.075 | I39: 0 | J39: 0
A40: 4 | B40: =B34*70 -> 92.05 | C40: Wh | D40: =IF($D$2<0.5,(D34*80/50*$B$2)*($D$2+0.2),(D34*80/50*$B$2)) -> 6.20736 | F40: =D40+E40 -> 6.20736 | G40: Wh | H40: 85.84264 | I40: 0 | J40: 6.20736
A41: 5 | B41: =B34*115 -> 151.225 | C41: Wh | D41: =IF($D$2<0.5,(D34*180/50*$B$2)*($D$2+0.2),(D34*180/50*$B$2*$D$2)) -> 13.96656 | F41: =D41+E41 -> 13.96656 | G41: Wh | H41: 137.25844 | I41: 0 | J41: 13.96656
A42: 6 | B42: =B34*200 -> 263 | C42: Wh | D42: =IF($D$2<0.5,(D34*250/50*$B$2)*($D$2+0.2),(D34*250/50*$B$2)) -> 19.398 | F42: 19.398 | G42: Wh | H42: 243.602 | I42: 0 | J42: 19.398
A43: 7 | B43: =210*B34 -> 276.15 | C43: Wh | D43: =IF($D$2<0.5,(D34*320/50*$B$2)*($D$2+0.2),(D34*320/50*$B$2*$D$2)) -> 24.82944 | E43: =IF($D$2<0.5,(D34*80/50*$B$2)*($D$2+0.2),(D34*80/50*$B$2*$D$2)) -> 6.20736 | F43: 31.0368 | G43: Wh | H43: 245.1132 | I43: 0 | J43: 31.0368
A44: 8 | B44: =B34*165 -> 216.975 | C44: Wh | D44: =IF($D$2<0.5,(D34*400/50*$B$2)*($D$2+0.2),(D34*400/50*$B$2)) -> 31.0368 | E44: =IF($D$2<0.5,(D34*180/50*$B$2)*($D$2+0.2),(D34*180/50*$B$2)) -> 13.96656 | F44: 45.00336 | G44: Wh | H44: 171.97164 | I44: 0 | J44: 45.00336
A45: 9 | B45: =B34*210 -> 276.15 | C45: Wh | D45: =IF($D$2<0.5,(D34*460/50*$B$2)*($D$2+0.2),(D34*460/50*$B$2*$D$2)) -> 35.69232 | E45: =IF($D$2<0.5,(D34*250/50*$B$2)*($D$2+0.2),(D34*250/50*$B$2*$D$2)) -> 19.398 | F45: 55.09032 | G45: Wh | H45: 221.05968 | I45: 0 | J45: 55.09032
A46: 10 | B46: =B34*235 -> 309.025 | C46: Wh | D46: =IF($D$2<0.5,(D34*470/50*$B$2)*($D$2+0.2),(D34*470/50*$B$2)) -> 36.46824 | E46: =IF($D$2<0.5,(D34*320/50*$B$2)*($D$2+0.2),(D34*320/50*$B$2)) -> 24.82944 | F46: 61.29768 | G46: Wh | H46: 247.72732 | I46: 0 | J46: 61.29768
A47: 11 | B47: =B34*250 -> 328.75 | C47: Wh | D47: =IF($D$2<0.5,(D34*470/50*$B$2)*($D$2+0.2),(D34*470/50*$B$2*$D$2)) -> 36.46824 | E47: =IF($D$2<0.5,(D34*400/50*$B$2)*($D$2+0.2),(D34*400/50*$B$2*$D$2)) -> 31.0368 | F47: 67.50504 | G47: Wh | H47: 261.24496 | I47: 0 | J47: 67.50504
A48: 12 | B48: =B34*300 -> 394.5 | C48: Wh | D48: =IF($D$2<0.5,(D34*460/50*$B$2)*($D$2+0.2),(D34*460/50*$B$2)) -> 35.69232 | E48: =IF($D$2<0.5,(D34*460/50*$B$2)*($D$2+0.2),(D34*460/50*$B$2)) -> 35.69232 | F48: 71.38464 | G48: Wh | H48: 323.11536 | I48: 0 | J48: 71.38464
A49: 13 | B49: =B34*325 -> 427.375 | C49: Wh | D49: =IF($D$2<0.5,(D34*460/50*$B$2)*($D$2+0.2),(D34*460*$D$2/50*$B$2)) -> 35.69232 | E49: =IF($D$2<0.5,(D34*470/50*$B$2)*($D$2+0.2),(D34*470/50*$B$2*$D$2)) -> 36.46824 | F49: 72.16056 | G49: Wh | H49: 355.21444 | I49: 0 | J49: 72.16056
A50: 14 | B50: =B34*200 -> 263 | C50: Wh | D50: =IF($D$2<0.5,(D34*400/50*$B$2)*($D$2+0.2),(D34*400/50*$B$2)) -> 31.0368 | E50: =IF($D$2<0.5,(D34*470/50*$B$2)*($D$2+0.2),(D34*470/50*$B$2)) -> 36.46824 | F50: 67.50504 | G50: Wh | H50: 195.49496 | I50: 0 | J50: 67.50504
A51: 15 | B51: =B34*160 -> 210.4 | C51: Wh | D51: =IF($D$2<0.5,(D34*320/50*$B$2)*($D$2+0.2),(D34*320/50*$B$2*$D$2)) -> 24.82944 | E51: =IF($D$2<0.5,(D34*460/50*$B$2)*($D$2+0.2),(D34*460/50*$B$2*$D$2)) -> 35.69232 | F51: 60.52176 | G51: Wh | H51: 149.87824 | I51: 0 | J51: 60.52176
A52: 16 | B52: =B34*175 -> 230.125 | C52: Wh | D52: =IF($D$2<0.5,(D34*250/50*$B$2)*($D$2+0.2),(D34*250/50*$B$2)) -> 19.398 | E52: =IF($D$2<0.5,(D34*460/50*$B$2)*($D$2+0.2),(D34*460/50*$B$2)) -> 35.69232 | F52: 55.09032 | G52: Wh | H52: 175.03468 | I52: 0 | J52: 55.09032
A53: 17 | B53: =B34*210 -> 276.15 | C53: Wh | D53: =IF($D$2<0.5,(D34*180/50*$B$2)*($D$2+0.2),(D34*180/50*$B$2*$D$2)) -> 13.96656 | E53: =IF($D$2<0.5,(D34*400/50*$B$2)*($D$2+0.2),(D34*400/50*$B$2*$D$2)) -> 31.0368 | F53: 45.00336 | G53: Wh | H53: 231.14664 | I53: 0 | J53: 45.00336
A54: 18 | B54: =B34*205 -> 269.575 | C54: Wh | D54: =IF($D$2<0.5,(D34*80/50*$B$2)*($D$2+0.2),(D34*80/50*$B$2)) -> 6.20736 | E54: =IF($D$2<0.5,(D34*320/50*$B$2)*($D$2+0.2),(D34*320/50*$B$2)) -> 24.82944 | F54: 31.0368 | G54: Wh | H54: 238.5382 | I54: 0 | J54: 31.0368
A55: 19 | B55: =B34*275 -> 361.625 | C55: Wh | E55: =IF($D$2<0.5,(D34*250/50*$B$2)*($D$2+0.2),(D34/50*$B$2*250*$D$2)) -> 19.398 | F55: 19.398 | G55: Wh | H55: 342.227 | I55: 0 | J55: 19.398
A56: 20 | B56: =B34*350 -> 460.25 | C56: Wh | E56: =IF($D$2<0.5,(D34*180/50*$B$2)*($D$2+0.2),(D34*180/50*$B$2)) -> 13.96656 | F56: 13.96656 | G56: Wh | H56: 446.28344 | I56: 0 | J56: =IF((IF(F56>B56,B56,F56)+(I56-I55))>0,(IF(F56>B56,B56,F56)+(I56-I55)),0) -> 13.96656
A57: 21 | B57: =B34*400 -> 526 | C57: Wh | E57: =IF($D$2<0.5,(D34*80/50*$B$2)*($D$2+0.2),(D34*80*$D$2/50*$B$2)) -> 6.20736 | F57: 6.20736 | G57: Wh | H57: 519.79264 | I57: 0 | J57: =IF((IF(F57>B57,B57,F57)+(I57-I56))>0,(IF(F57>B57,B57,F57)+(I57-I56)),0) -> 6.20736
A58: 22 | B58: =B34*325 -> 427.375 | C58: Wh | G58: Wh | H58: 427.375 | I58: 0 | J58: 0
A59: 23 | B59: =B34*100 -> 131.5 | C59: Wh | G59: Wh | H59: 131.5 | I59: 0 | J59: 0
A60: Za den: | B60: =SUM(B36:B59)/1000 -> 6.312 | C60: kWh | E60: Za den: | F60: =SUM(F40:F59)/1000 -> 0.74177952 | G60: kWh | I60: Za den: | J60: =SUM(J36:J59)/1000 -> 0.74177952 | K60: kWh
A61: Měsíčně: | B61: =B60*30.5/1000 -> 0.192516 | C61: MWh | E61: Měsíčně: | F61: =F60*30.5/1000 -> 0.02262427536 | G61: MWh | I61: Měsíčně: | J61: =J60*30.5/1000 -> 0.02262427536 | K61: MWh
B64: =1.315 -> 1.315 | C64: korektor | D64: 14.15 | E64: BŘEZEN | H64: Wh | I64: Wh | J64: Wh
A65: Hodiny | B65: hodinová spotřeba | D65: FVE V | E65: FVE Z | F65: FVE | H65: PRE | I65: CAP.Bat. | J65: spotřebovaná z FVE | L65: Odběr | M65: FVE | N65: Baterie
A66: 0 | B66: =60*B64 -> 78.9 | C66: Wh | G66: Wh | H66: =B66-F66 -> 78.9 | I66: 0 | J66: =IF((IF(F66>B66,B66,F66)+(I89-I66))>0,(IF(F66>B66,B66,F66)+(I89-I66)),0) -> 0
A67: 1 | B67: =50*B64 -> 65.75 | C67: Wh | G67: Wh | H67: =B67-F67 -> 65.75 | I67: =IF(IF(H67<0,(I66+(H67*-1)),IF(H67<I66,I66-H67,IF(H67>I66,0,I66)))>($H$2*1000),($H$2*1000),(IF(H67<0,(I66+(H67*-1)),IF(H67<I66,I66-H67,IF(H67>I66,0,I66))))) -> 0 | J67: =IF((IF(F67>B67,B67,F67)+(I67-I66))>0,(IF(F67>B67,B67,F67)+(I67-I66)),0) -> 0
A68: 2 | B68: =B64*105 -> 138.075 | C68: Wh | G68: Wh | H68: 138.075 | I68: 0 | J68: 0
A69: 3 | B69: =B64*105 -> 138.075 | C69: Wh | G69: Wh | H69: 138.075 | I69: 0 | J69: 0
A70: 4 | B70: =B64*70 -> 92.05 | C70: Wh | D70: =IF($D$2<0.5,(D64*80/50*$B$2)*($D$2+0.2),(D64*80/50*$B$2)) -> 11.04832 | F70: =D70+E70 -> 11.04832 | G70: Wh | H70: 81.00168 | I70: 0 | J70: 11.04832
A71: 5 | B71: =B64*115 -> 151.225 | C71: Wh | D71: =IF($D$2<0.5,(D64*180/50*$B$2)*($D$2+0.2),(D64*180/50*$B$2*$D$2)) -> 24.85872 | F71: =D71+E71 -> 24.85872 | G71: Wh | H71: 126.36628 | I71: 0 | J71: 24.85872
A72: 6 | B72: =B64*200 -> 263 | C72: Wh | D72: =IF($D$2<0.5,(D64*250/50*$B$2)*($D$2+0.2),(D64*250/50*$B$2)) -> 34.526 | F72: 34.526 | G72: Wh | H72: 228.474 | I72: 0 | J72: 34.526
A73: 7 | B73: =210*B64 -> 276.15 | C73: Wh | D73: =IF($D$2<0.5,(D64*320/50*$B$2)*($D$2+0.2),(D64*320/50*$B$2*$D$2)) -> 44.19328 | E73: =IF($D$2<0.5,(D64*80/50*$B$2)*($D$2+0.2),(D64*80/50*$B$2*$D$2)) -> 11.04832 | F73: 55.2416 | G73: Wh | H73: 220.9084 | I73: 0 | J73: 55.2416
A74: 8 | B74: =B64*165 -> 216.975 | C74: Wh | D74: =IF($D$2<0.5,(D64*400/50*$B$2)*($D$2+0.2),(D64*400/50*$B$2)) -> 55.2416 | E74: =IF($D$2<0.5,(D64*180/50*$B$2)*($D$2+0.2),(D64*180/50*$B$2)) -> 24.85872 | F74: 80.10032 | G74: Wh | H74: 136.87468 | I74: 0 | J74: 80.10032
A75: 9 | B75: =B64*210 -> 276.15 | C75: Wh | D75: =IF($D$2<0.5,(D64*460/50*$B$2)*($D$2+0.2),(D64*460/50*$B$2*$D$2)) -> 63.52784 | E75: =IF($D$2<0.5,(D64*250/50*$B$2)*($D$2+0.2),(D64*250/50*$B$2*$D$2)) -> 34.526 | F75: 98.05384 | G75: Wh | H75: 178.09616 | I75: 0 | J75: 98.05384
A76: 10 | B76: =B64*235 -> 309.025 | C76: Wh | D76: =IF($D$2<0.5,(D64*470/50*$B$2)*($D$2+0.2),(D64*470/50*$B$2)) -> 64.90888 | E76: =IF($D$2<0.5,(D64*320/50*$B$2)*($D$2+0.2),(D64*320/50*$B$2)) -> 44.19328 | F76: 109.10216 | G76: Wh | H76: 199.92284 | I76: 0 | J76: 109.10216
A77: 11 | B77: =B64*250 -> 328.75 | C77: Wh | D77: =IF($D$2<0.5,(D64*470/50*$B$2)*($D$2+0.2),(D64*470/50*$B$2*$D$2)) -> 64.90888 | E77: =IF($D$2<0.5,(D64*400/50*$B$2)*($D$2+0.2),(D64*400/50*$B$2*$D$2)) -> 55.2416 | F77: 120.15048 | G77: Wh | H77: 208.59952 | I77: 0 | J77: 120.15048
A78: 12 | B78: =B64*300 -> 394.5 | C78: Wh | D78: =IF($D$2<0.5,(D64*460/50*$B$2)*($D$2+0.2),(D64*460/50*$B$2)) -> 63.52784 | E78: =IF($D$2<0.5,(D64*460/50*$B$2)*($D$2+0.2),(D64*460/50*$B$2)) -> 63.52784 | F78: 127.05568 | G78: Wh | H78: 267.44432 | I78: 0 | J78: 127.05568
A79: 13 | B79: =B64*325 -> 427.375 | C79: Wh | D79: =IF($D$2<0.5,(D64*460/50*$B$2)*($D$2+0.2),(D64*460*$D$2/50*$B$2)) -> 63.52784 | E79: =IF($D$2<0.5,(D64*470/50*$B$2)*($D$2+0.2),(D64*470/50*$B$2*$D$2)) -> 64.90888 | F79: 128.43672 | G79: Wh | H79: 298.93828 | I79: 0 | J79: 128.43672
A80: 14 | B80: =B64*200 -> 263 | C80: Wh | D80: =IF($D$2<0.5,(D64*400/50*$B$2)*($D$2+0.2),(D64*400/50*$B$2)) -> 55.2416 | E80: =IF($D$2<0.5,(D64*470/50*$B$2)*($D$2+0.2),(D64*470/50*$B$2)) -> 64.90888 | F80: 120.15048 | G80: Wh | H80: 142.84952 | I80: 0 | J80: 120.15048
A81: 15 | B81: =B64*160 -> 210.4 | C81: Wh | D81: =IF($D$2<0.5,(D64*320/50*$B$2)*($D$2+0.2),(D64*320/50*$B$2*$D$2)) -> 44.19328 | E81: =IF($D$2<0.5,(D64*460/50*$B$2)*($D$2+0.2),(D64*460/50*$B$2*$D$2)) -> 63.52784 | F81: 107.72112 | G81: Wh | H81: 102.67888 | I81: 0 | J81: 107.72112
A82: 16 | B82: =B64*175 -> 230.125 | C82: Wh | D82: =IF($D$2<0.5,(D64*250/50*$B$2)*($D$2+0.2),(D64*250/50*$B$2)) -> 34.526 | E82: =IF($D$2<0.5,(D64*460/50*$B$2)*($D$2+0.2),(D64*460/50*$B$2)) -> 63.52784 | F82: 98.05384 | G82: Wh | H82: 132.07116 | I82: 0 | J82: 98.05384
A83: 17 | B83: =B64*210 -> 276.15 | C83: Wh | D83: =IF($D$2<0.5,(D64*180/50*$B$2)*($D$2+0.2),(D64*180/50*$B$2*$D$2)) -> 24.85872 | E83: =IF($D$2<0.5,(D64*400/50*$B$2)*($D$2+0.2),(D64*400/50*$B$2*$D$2)) -> 55.2416 | F83: 80.10032 | G83: Wh | H83: 196.04968 | I83: 0 | J83: 80.10032
A84: 18 | B84: =B64*205 -> 269.575 | C84: Wh | D84: =IF($D$2<0.5,(D64*80/50*$B$2)*($D$2+0.2),(D64*80/50*$B$2)) -> 11.04832 | E84: =IF($D$2<0.5,(D64*320/50*$B$2)*($D$2+0.2),(D64*320/50*$B$2)) -> 44.19328 | F84: 55.2416 | G84: Wh | H84: 214.3334 | I84: 0 | J84: 55.2416
A85: 19 | B85: =B64*275 -> 361.625 | C85: Wh | E85: =IF($D$2<0.5,(D64*250/50*$B$2)*($D$2+0.2),(D64/50*$B$2*250*$D$2)) -> 34.526 | F85: 34.526 | G85: Wh | H85: 327.099 | I85: 0 | J85: 34.526
A86: 20 | B86: =B64*350 -> 460.25 | C86: Wh | E86: =IF($D$2<0.5,(D64*180/50*$B$2)*($D$2+0.2),(D64*180/50*$B$2)) -> 24.85872 | F86: 24.85872 | G86: Wh | H86: 435.39128 | I86: 0 | J86: =IF((IF(F86>B86,B86,F86)+(I86-I85))>0,(IF(F86>B86,B86,F86)+(I86-I85)),0) -> 24.85872
A87: 21 | B87: =B64*400 -> 526 | C87: Wh | E87: =IF($D$2<0.5,(D64*80/50*$B$2)*($D$2+0.2),(D64*80*$D$2/50*$B$2)) -> 11.04832 | F87: 11.04832 | G87: Wh | H87: 514.95168 | I87: 0 | J87: =IF((IF(F87>B87,B87,F87)+(I87-I86))>0,(IF(F87>B87,B87,F87)+(I87-I86)),0) -> 11.04832
A88: 22 | B88: =B64*325 -> 427.375 | C88: Wh | G88: Wh | H88: 427.375 | I88: 0 | J88: 0
A89: 23 | B89: =B64*100 -> 131.5 | C89: Wh | G89: Wh | H89: 131.5 | I89: 0 | J89: 0
A90: Za den: | B90: =SUM(B66:B89)/1000 -> 6.312 | C90: kWh | E90: Za den: | F90: =SUM(F70:F89)/1000 -> 1.32027424 | G90: kWh | I90: Za den: | J90: =SUM(J66:J89)/1000 -> 1.32027424 | K90: kWh
A91: Měsíčně: | B91: =B90*30.5/1000 -> 0.192516 | C91: MWh | E91: Měsíčně: | F91: =F90*30.5/1000 -> 0.04026836432 | G91: MWh | I91: Měsíčně: | J91: =J90*30.5/1000 -> 0.04026836432 | K91: MWh
B94: =1.315 -> 1.315 | C94: korektor | D94: 20.55 | E94: DUBEN | H94: Wh | I94: Wh | J94: Wh
A95: Hodiny | B95: hodinová spotřeba | D95: FVE V | E95: FVE Z | F95: FVE | H95: PRE | I95: CAP.Bat. | J95: spotřebovaná z FVE | L95: Odběr | M95: FVE | N95: Baterie
A96: 0 | B96: =60*B94 -> 78.9 | C96: Wh | G96: Wh | H96: =B96-F96 -> 78.9 | I96: 0 | J96: =IF((IF(F96>B96,B96,F96)+(I119-I96))>0,(IF(F96>B96,B96,F96)+(I119-I96)),0) -> 0
A97: 1 | B97: =50*B94 -> 65.75 | C97: Wh | G97: Wh | H97: =B97-F97 -> 65.75 | I97: =IF(IF(H97<0,(I96+(H97*-1)),IF(H97<I96,I96-H97,IF(H97>I96,0,I96)))>($H$2*1000),($H$2*1000),(IF(H97<0,(I96+(H97*-1)),IF(H97<I96,I96-H97,IF(H97>I96,0,I96))))) -> 0 | J97: =IF((IF(F97>B97,B97,F97)+(I97-I96))>0,(IF(F97>B97,B97,F97)+(I97-I96)),0) -> 0
A98: 2 | B98: =B94*105 -> 138.075 | C98: Wh | G98: Wh | H98: 138.075 | I98: 0 | J98: 0
A99: 3 | B99: =B94*105 -> 138.075 | C99: Wh | G99: Wh | H99: 138.075 | I99: 0 | J99: 0
A100: 4 | B100: =B94*70 -> 92.05 | C100: Wh | D100: =IF($D$2<0.5,(D94*80/50*$B$2)*($D$2+0.2),(D94*80/50*$B$2)) -> 16.04544 | F100: =D100+E100 -> 16.04544 | G100: Wh | H100: 76.00456 | I100: 0 | J100: 16.04544
A101: 5 | B101: =B94*115 -> 151.225 | C101: Wh | D101: =IF($D$2<0.5,(D94*180/50*$B$2)*($D$2+0.2),(D94*180/50*$B$2*$D$2)) -> 36.10224 | F101: =D101+E101 -> 36.10224 | G101: Wh | H101: 115.12276 | I101: 0 | J101: 36.10224
A102: 6 | B102: =B94*200 -> 263 | C102: Wh | D102: =IF($D$2<0.5,(D94*250/50*$B$2)*($D$2+0.2),(D94*250/50*$B$2)) -> 50.142 | F102: 50.142 | G102: Wh | H102: 212.858 | I102: 0 | J102: 50.142
A103: 7 | B103: =210*B94 -> 276.15 | C103: Wh | D103: =IF($D$2<0.5,(D94*320/50*$B$2)*($D$2+0.2),(D94*320/50*$B$2*$D$2)) -> 64.18176 | E103: =IF($D$2<0.5,(D94*80/50*$B$2)*($D$2+0.2),(D94*80/50*$B$2*$D$2)) -> 16.04544 | F103: 80.2272 | G103: Wh | H103: =B103-F103 -> 195.9228 | I103: 0 | J103: 80.2272
A104: 8 | B104: =B94*165 -> 216.975 | C104: Wh | D104: =IF($D$2<0.5,(D94*400/50*$B$2)*($D$2+0.2),(D94*400/50*$B$2)) -> 80.2272 | E104: =IF($D$2<0.5,(D94*180/50*$B$2)*($D$2+0.2),(D94*180/50*$B$2)) -> 36.10224 | F104: 116.32944 | G104: Wh | H104: 100.64556 | I104: 0 | J104: 116.32944
A105: 9 | B105: =B94*210 -> 276.15 | C105: Wh | D105: =IF($D$2<0.5,(D94*460/50*$B$2)*($D$2+0.2),(D94*460/50*$B$2*$D$2)) -> 92.26128 | E105: =IF($D$2<0.5,(D94*250/50*$B$2)*($D$2+0.2),(D94*250/50*$B$2*$D$2)) -> 50.142 | F105: 142.40328 | G105: Wh | H105: 133.74672 | I105: 0 | J105: 142.40328
A106: 10 | B106: =B94*235 -> 309.025 | C106: Wh | D106: =IF($D$2<0.5,(D94*470/50*$B$2)*($D$2+0.2),(D94*470/50*$B$2)) -> 94.26696 | E106: =IF($D$2<0.5,(D94*320/50*$B$2)*($D$2+0.2),(D94*320/50*$B$2)) -> 64.18176 | F106: 158.44872 | G106: Wh | H106: 150.57628 | I106: 0 | J106: 158.44872
A107: 11 | B107: =B94*250 -> 328.75 | C107: Wh | D107: =IF($D$2<0.5,(D94*470/50*$B$2)*($D$2+0.2),(D94*470/50*$B$2*$D$2)) -> 94.26696 | E107: =IF($D$2<0.5,(D94*400/50*$B$2)*($D$2+0.2),(D94*400/50*$B$2*$D$2)) -> 80.2272 | F107: 174.49416 | G107: Wh | H107: 154.25584 | I107: 0 | J107: 174.49416
A108: 12 | B108: =B94*300 -> 394.5 | C108: Wh | D108: =IF($D$2<0.5,(D94*460/50*$B$2)*($D$2+0.2),(D94*460/50*$B$2)) -> 92.26128 | E108: =IF($D$2<0.5,(D94*460/50*$B$2)*($D$2+0.2),(D94*460/50*$B$2)) -> 92.26128 | F108: 184.52256 | G108: Wh | H108: 209.97744 | I108: 0 | J108: 184.52256
A109: 13 | B109: =B94*325 -> 427.375 | C109: Wh | D109: =IF($D$2<0.5,(D94*460/50*$B$2)*($D$2+0.2),(D94*460*$D$2/50*$B$2)) -> 92.26128 | E109: =IF($D$2<0.5,(D94*470/50*$B$2)*($D$2+0.2),(D94*470/50*$B$2*$D$2)) -> 94.26696 | F109: 186.52824 | G109: Wh | H109: 240.84676 | I109: 0 | J109: 186.52824
A110: 14 | B110: =B94*200 -> 263 | C110: Wh | D110: =IF($D$2<0.5,(D94*400/50*$B$2)*($D$2+0.2),(D94*400/50*$B$2)) -> 80.2272 | E110: =IF($D$2<0.5,(D94*470/50*$B$2)*($D$2+0.2),(D94*470/50*$B$2)) -> 94.26696 | F110: 174.49416 | G110: Wh | H110: 88.50584 | I110: 0 | J110: 174.49416
A111: 15 | B111: =B94*160 -> 210.4 | C111: Wh | D111: =IF($D$2<0.5,(D94*320/50*$B$2)*($D$2+0.2),(D94*320/50*$B$2*$D$2)) -> 64.18176 | E111: =IF($D$2<0.5,(D94*460/50*$B$2)*($D$2+0.2),(D94*460/50*$B$2*$D$2)) -> 92.26128 | F111: 156.44304 | G111: Wh | H111: 53.95696 | I111: 0 | J111: 156.44304
A112: 16 | B112: =B94*175 -> 230.125 | C112: Wh | D112: =IF($D$2<0.5,(D94*250/50*$B$2)*($D$2+0.2),(D94*250/50*$B$2)) -> 50.142 | E112: =IF($D$2<0.5,(D94*460/50*$B$2)*($D$2+0.2),(D94*460/50*$B$2)) -> 92.26128 | F112: 142.40328 | G112: Wh | H112: 87.72172 | I112: 0 | J112: 142.40328
A113: 17 | B113: =B94*210 -> 276.15 | C113: Wh | D113: =IF($D$2<0.5,(D94*180/50*$B$2)*($D$2+0.2),(D94*180/50*$B$2*$D$2)) -> 36.10224 | E113: =IF($D$2<0.5,(D94*400/50*$B$2)*($D$2+0.2),(D94*400/50*$B$2*$D$2)) -> 80.2272 | F113: 116.32944 | G113: Wh | H113: 159.82056 | I113: 0 | J113: 116.32944
A114: 18 | B114: =B94*205 -> 269.575 | C114: Wh | D114: =IF($D$2<0.5,(D94*80/50*$B$2)*($D$2+0.2),(D94*80/50*$B$2)) -> 16.04544 | E114: =IF($D$2<0.5,(D94*320/50*$B$2)*($D$2+0.2),(D94*320/50*$B$2)) -> 64.18176 | F114: 80.2272 | G114: Wh | H114: 189.3478 | I114: 0 | J114: 80.2272
A115: 19 | B115: =B94*275 -> 361.625 | C115: Wh | E115: =IF($D$2<0.5,(D94*250/50*$B$2)*($D$2+0.2),(D94/50*$B$2*250*$D$2)) -> 50.142 | F115: 50.142 | G115: Wh | H115: 311.483 | I115: 0 | J115: 50.142
A116: 20 | B116: =B94*350 -> 460.25 | C116: Wh | E116: =IF($D$2<0.5,(D94*180/50*$B$2)*($D$2+0.2),(D94*180/50*$B$2)) -> 36.10224 | F116: 36.10224 | G116: Wh | H116: 424.14776 | I116: 0 | J116: =IF((IF(F116>B116,B116,F116)+(I116-I115))>0,(IF(F116>B116,B116,F116)+(I116-I115)),0) -> 36.10224
A117: 21 | B117: =B94*400 -> 526 | C117: Wh | E117: =IF($D$2<0.5,(D94*80/50*$B$2)*($D$2+0.2),(D94*80*$D$2/50*$B$2)) -> 16.04544 | F117: 16.04544 | G117: Wh | H117: 509.95456 | I117: 0 | J117: =IF((IF(F117>B117,B117,F117)+(I117-I116))>0,(IF(F117>B117,B117,F117)+(I117-I116)),0) -> 16.04544
A118: 22 | B118: =B94*325 -> 427.375 | C118: Wh | G118: Wh | H118: 427.375 | I118: 0 | J118: 0
A119: 23 | B119: =B94*100 -> 131.5 | C119: Wh | G119: Wh | H119: 131.5 | I119: 0 | J119: 0
A120: Za den: | B120: =SUM(B96:B119)/1000 -> 6.312 | C120: kWh | E120: Za den: | F120: =SUM(F100:F119)/1000 -> 1.91743008 | G120: kWh | I120: Za den: | J120: =SUM(J96:J119)/1000 -> 1.91743008 | K120: kWh
A121: Měsíčně: | B121: =B120*30.5/1000 -> 0.192516 | C121: MWh | E121: Měsíčně: | F121: =F120*30.5/1000 -> 0.05848161744 | G121: MWh | I121: Měsíčně: | J121: =J120*30.5/1000 -> 0.05848161744 | K121: MWh
B124: =1.315 -> 1.315 | C124: korektor | D124: 22.65 | E124: KVĚTEN | H124: Wh | I124: Wh | J124: Wh
A125: Hodiny | B125: hodinová spotřeba | D125: FVE V | E125: FVE Z | F125: FVE | H125: PRE | I125: CAP.Bat. | J125: spotřebovaná z FVE | L125: Odběr | M125: FVE | N125: Baterie
A126: 0 | B126: =60*B124 -> 78.9 | C126: Wh | G126: Wh | H126: =B126-F126 -> 78.9 | I126: 0 | J126: =IF((IF(F126>B126,B126,F126)+(I149-I126))>0,(IF(F126>B126,B126,F126)+(I149-I126)),0) -> 0
A127: 1 | B127: =50*B124 -> 65.75 | C127: Wh | G127: Wh | H127: =B127-F127 -> 65.75 | I127: =IF(IF(H127<0,(I126+(H127*-1)),IF(H127<I126,I126-H127,IF(H127>I126,0,I126)))>($H$2*1000),($H$2*1000),(IF(H127<0,(I126+(H127*-1)),IF(H127<I126,I126-H127,IF(H127>I126,0,I126))))) -> 0 | J127: =IF((IF(F127>B127,B127,F127)+(I127-I126))>0,(IF(F127>B127,B127,F127)+(I127-I126)),0) -> 0
A128: 2 | B128: =B124*105 -> 138.075 | C128: Wh | G128: Wh | H128: 138.075 | I128: 0 | J128: 0
A129: 3 | B129: =B124*105 -> 138.075 | C129: Wh | G129: Wh | H129: 138.075 | I129: 0 | J129: 0
A130: 4 | B130: =B124*70 -> 92.05 | C130: Wh | D130: =IF($D$2<0.5,(D124*80/50*$B$2)*($D$2+0.2),(D124*80/50*$B$2)) -> 17.68512 | F130: =D130+E130 -> 17.68512 | G130: Wh | H130: 74.36488 | I130: 0 | J130: 17.68512
A131: 5 | B131: =B124*115 -> 151.225 | C131: Wh | D131: =IF($D$2<0.5,(D124*180/50*$B$2)*($D$2+0.2),(D124*180/50*$B$2*$D$2)) -> 39.79152 | F131: =D131+E131 -> 39.79152 | G131: Wh | H131: 111.43348 | I131: 0 | J131: 39.79152
A132: 6 | B132: =B124*200 -> 263 | C132: Wh | D132: =IF($D$2<0.5,(D124*250/50*$B$2)*($D$2+0.2),(D124*250/50*$B$2)) -> 55.266 | F132: 55.266 | G132: Wh | H132: 207.734 | I132: 0 | J132: 55.266
A133: 7 | B133: =210*B124 -> 276.15 | C133: Wh | D133: =IF($D$2<0.5,(D124*320/50*$B$2)*($D$2+0.2),(D124*320/50*$B$2*$D$2)) -> 70.74048 | E133: =IF($D$2<0.5,(D124*80/50*$B$2)*($D$2+0.2),(D124*80/50*$B$2*$D$2)) -> 17.68512 | F133: 88.4256 | G133: Wh | H133: 187.7244 | I133: 0 | J133: 88.4256
A134: 8 | B134: =B124*165 -> 216.975 | C134: Wh | D134: =IF($D$2<0.5,(D124*400/50*$B$2)*($D$2+0.2),(D124*400/50*$B$2)) -> 88.4256 | E134: =IF($D$2<0.5,(D124*180/50*$B$2)*($D$2+0.2),(D124*180/50*$B$2)) -> 39.79152 | F134: 128.21712 | G134: Wh | H134: 88.75788 | I134: 0 | J134: 128.21712
A135: 9 | B135: =B124*210 -> 276.15 | C135: Wh | D135: =IF($D$2<0.5,(D124*460/50*$B$2)*($D$2+0.2),(D124*460/50*$B$2*$D$2)) -> 101.68944 | E135: =IF($D$2<0.5,(D124*250/50*$B$2)*($D$2+0.2),(D124*250/50*$B$2*$D$2)) -> 55.266 | F135: 156.95544 | G135: Wh | H135: 119.19456 | I135: 0 | J135: 156.95544
A136: 10 | B136: =B124*235 -> 309.025 | C136: Wh | D136: =IF($D$2<0.5,(D124*470/50*$B$2)*($D$2+0.2),(D124*470/50*$B$2)) -> 103.90008 | E136: =IF($D$2<0.5,(D124*320/50*$B$2)*($D$2+0.2),(D124*320/50*$B$2)) -> 70.74048 | F136: 174.64056 | G136: Wh | H136: 134.38444 | I136: 0 | J136: 174.64056
A137: 11 | B137: =B124*250 -> 328.75 | C137: Wh | D137: =IF($D$2<0.5,(D124*470/50*$B$2)*($D$2+0.2),(D124*470/50*$B$2*$D$2)) -> 103.90008 | E137: =IF($D$2<0.5,(D124*400/50*$B$2)*($D$2+0.2),(D124*400/50*$B$2*$D$2)) -> 88.4256 | F137: 192.32568 | G137: Wh | H137: 136.42432 | I137: 0 | J137: 192.32568
A138: 12 | B138: =B124*300 -> 394.5 | C138: Wh | D138: =IF($D$2<0.5,(D124*460/50*$B$2)*($D$2+0.2),(D124*460/50*$B$2)) -> 101.68944 | E138: =IF($D$2<0.5,(D124*460/50*$B$2)*($D$2+0.2),(D124*460/50*$B$2)) -> 101.68944 | F138: 203.37888 | G138: Wh | H138: 191.12112 | I138: 0 | J138: 203.37888
A139: 13 | B139: =B124*325 -> 427.375 | C139: Wh | D139: =IF($D$2<0.5,(D124*460/50*$B$2)*($D$2+0.2),(D124*460*$D$2/50*$B$2)) -> 101.68944 | E139: =IF($D$2<0.5,(D124*470/50*$B$2)*($D$2+0.2),(D124*470/50*$B$2*$D$2)) -> 103.90008 | F139: 205.58952 | G139: Wh | H139: 221.78548 | I139: 0 | J139: 205.58952
A140: 14 | B140: =B124*200 -> 263 | C140: Wh | D140: =IF($D$2<0.5,(D124*400/50*$B$2)*($D$2+0.2),(D124*400/50*$B$2)) -> 88.4256 | E140: =IF($D$2<0.5,(D124*470/50*$B$2)*($D$2+0.2),(D124*470/50*$B$2)) -> 103.90008 | F140: 192.32568 | G140: Wh | H140: 70.67432 | I140: 0 | J140: 192.32568
A141: 15 | B141: =B124*160 -> 210.4 | C141: Wh | D141: =IF($D$2<0.5,(D124*320/50*$B$2)*($D$2+0.2),(D124*320/50*$B$2*$D$2)) -> 70.74048 | E141: =IF($D$2<0.5,(D124*460/50*$B$2)*($D$2+0.2),(D124*460/50*$B$2*$D$2)) -> 101.68944 | F141: 172.42992 | G141: Wh | H141: 37.97008 | I141: 0 | J141: 172.42992
A142: 16 | B142: =B124*175 -> 230.125 | C142: Wh | D142: =IF($D$2<0.5,(D124*250/50*$B$2)*($D$2+0.2),(D124*250/50*$B$2)) -> 55.266 | E142: =IF($D$2<0.5,(D124*460/50*$B$2)*($D$2+0.2),(D124*460/50*$B$2)) -> 101.68944 | F142: 156.95544 | G142: Wh | H142: 73.16956 | I142: 0 | J142: 156.95544
A143: 17 | B143: =B124*210 -> 276.15 | C143: Wh | D143: =IF($D$2<0.5,(D124*180/50*$B$2)*($D$2+0.2),(D124*180/50*$B$2*$D$2)) -> 39.79152 | E143: =IF($D$2<0.5,(D124*400/50*$B$2)*($D$2+0.2),(D124*400/50*$B$2*$D$2)) -> 88.4256 | F143: 128.21712 | G143: Wh | H143: 147.93288 | I143: 0 | J143: 128.21712
A144: 18 | B144: =B124*205 -> 269.575 | C144: Wh | D144: =IF($D$2<0.5,(D124*80/50*$B$2)*($D$2+0.2),(D124*80/50*$B$2)) -> 17.68512 | E144: =IF($D$2<0.5,(D124*320/50*$B$2)*($D$2+0.2),(D124*320/50*$B$2)) -> 70.74048 | F144: 88.4256 | G144: Wh | H144: 181.1494 | I144: 0 | J144: 88.4256
A145: 19 | B145: =B124*275 -> 361.625 | C145: Wh | E145: =IF($D$2<0.5,(D124*250/50*$B$2)*($D$2+0.2),(D124/50*$B$2*250*$D$2)) -> 55.266 | F145: 55.266 | G145: Wh | H145: 306.359 | I145: 0 | J145: 55.266
A146: 20 | B146: =B124*350 -> 460.25 | C146: Wh | E146: =IF($D$2<0.5,(D124*180/50*$B$2)*($D$2+0.2),(D124*180/50*$B$2)) -> 39.79152 | F146: 39.79152 | G146: Wh | H146: 420.45848 | I146: 0 | J146: =IF((IF(F146>B146,B146,F146)+(I146-I145))>0,(IF(F146>B146,B146,F146)+(I146-I145)),0) -> 39.79152
A147: 21 | B147: =B124*400 -> 526 | C147: Wh | E147: =IF($D$2<0.5,(D124*80/50*$B$2)*($D$2+0.2),(D124*80*$D$2/50*$B$2)) -> 17.68512 | F147: 17.68512 | G147: Wh | H147: 508.31488 | I147: 0 | J147: =IF((IF(F147>B147,B147,F147)+(I147-I146))>0,(IF(F147>B147,B147,F147)+(I147-I146)),0) -> 17.68512
A148: 22 | B148: =B124*325 -> 427.375 | C148: Wh | G148: Wh | H148: 427.375 | I148: 0 | J148: 0
A149: 23 | B149: =B124*100 -> 131.5 | C149: Wh | G149: Wh | H149: 131.5 | I149: 0 | J149: 0
A150: Za den: | B150: =SUM(B126:B149)/1000 -> 6.312 | C150: kWh | E150: Za den: | F150: =SUM(F130:F149)/1000 -> 2.11337184 | G150: kWh | I150: Za den: | J150: =SUM(J126:J149)/1000 -> 2.11337184 | K150: kWh
A151: Měsíčně: | B151: =B150*30.5/1000 -> 0.192516 | C151: MWh | E151: Měsíčně: | F151: =F150*30.5/1000 -> 0.06445784112 | G151: MWh | I151: Měsíčně: | J151: =J150*30.5/1000 -> 0.06445784112 | K151: MWh
D153: východ | E153: západ
B154: =1.315 -> 1.315 | C154: korektor | D154: 23.25 | E154: ČERVEN | H154: Wh | I154: Wh | J154: Wh
A155: Hodiny | B155: skutečná spotřeba | D155: FVE V | E155: FVE Z | F155: vyrobeno FVE | H155: PRE | I155: CAP.Bat. | J155: spotřebovano z FVE | L155: Odběr | M155: FVE | N155: Baterie
A156: 0 | B156: =60*B154 -> 78.9 | C156: Wh | G156: Wh | H156: =B156-F156 -> 78.9 | I156: 0 | J156: =IF((IF(F156>B156,B156,F156)+(I179-I156))>0,(IF(F156>B156,B156,F156)+(I179-I156)),0) -> 0
A157: 1 | B157: =50*B154 -> 65.75 | C157: Wh | G157: Wh | H157: =B157-F157 -> 65.75 | I157: =IF(IF(H157<0,(I156+(H157*-1)),IF(H157<I156,I156-H157,IF(H157>I156,0,I156)))>($H$2*1000),($H$2*1000),(IF(H157<0,(I156+(H157*-1)),IF(H157<I156,I156-H157,IF(H157>I156,0,I156))))) -> 0 | J157: =IF((IF(F157>B157,B157,F157)+(I157-I156))>0,(IF(F157>B157,B157,F157)+(I157-I156)),0) -> 0
A158: 2 | B158: =B154*105 -> 138.075 | C158: Wh | G158: Wh | H158: 138.075 | I158: 0 | J158: 0
A159: 3 | B159: =B154*105 -> 138.075 | C159: Wh | G159: Wh | H159: 138.075 | I159: 0 | J159: 0
A160: 4 | B160: =B154*70 -> 92.05 | C160: Wh | D160: =IF($D$2<0.5,(D154*80/50*$B$2)*($D$2+0.2),(D154*80/50*$B$2)) -> 18.1536 | F160: =D160+E160 -> 18.1536 | G160: Wh | H160: 73.8964 | I160: 0 | J160: 18.1536
A161: 5 | B161: =B154*115 -> 151.225 | C161: Wh | D161: =IF($D$2<0.5,(D154*180/50*$B$2)*($D$2+0.2),(D154*180/50*$B$2*$D$2)) -> 40.8456 | F161: =D161+E161 -> 40.8456 | G161: Wh | H161: 110.3794 | I161: 0 | J161: 40.8456
A162: 6 | B162: =B154*200 -> 263 | C162: Wh | D162: =IF($D$2<0.5,(D154*250/50*$B$2)*($D$2+0.2),(D154*250/50*$B$2)) -> 56.73 | F162: 56.73 | G162: Wh | H162: 206.27 | I162: 0 | J162: 56.73
A163: 7 | B163: =210*B154 -> 276.15 | C163: Wh | D163: =IF($D$2<0.5,(D154*320/50*$B$2)*($D$2+0.2),(D154*320/50*$B$2*$D$2)) -> 72.6144 | E163: =IF($D$2<0.5,(D154*80/50*$B$2)*($D$2+0.2),(D154*80/50*$B$2*$D$2)) -> 18.1536 | F163: 90.768 | G163: Wh | H163: 185.382 | I163: 0 | J163: 90.768
A164: 8 | B164: =B154*165 -> 216.975 | C164: Wh | D164: =IF($D$2<0.5,(D154*400/50*$B$2)*($D$2+0.2),(D154*400/50*$B$2)) -> 90.768 | E164: =IF($D$2<0.5,(D154*180/50*$B$2)*($D$2+0.2),(D154*180/50*$B$2)) -> 40.8456 | F164: 131.6136 | G164: Wh | H164: 85.3614 | I164: 0 | J164: 131.6136
A165: 9 | B165: =B154*210 -> 276.15 | C165: Wh | D165: =IF($D$2<0.5,(D154*460/50*$B$2)*($D$2+0.2),(D154*460/50*$B$2*$D$2)) -> 104.3832 | E165: =IF($D$2<0.5,(D154*250/50*$B$2)*($D$2+0.2),(D154*250/50*$B$2*$D$2)) -> 56.73 | F165: 161.1132 | G165: Wh | H165: 115.0368 | I165: 0 | J165: 161.1132
A166: 10 | B166: =B154*235 -> 309.025 | C166: Wh | D166: =IF($D$2<0.5,(D154*470/50*$B$2)*($D$2+0.2),(D154*470/50*$B$2)) -> 106.6524 | E166: =IF($D$2<0.5,(D154*320/50*$B$2)*($D$2+0.2),(D154*320/50*$B$2)) -> 72.6144 | F166: 179.2668 | G166: Wh | H166: 129.7582 | I166: 0 | J166: 179.2668
A167: 11 | B167: =B154*250 -> 328.75 | C167: Wh | D167: =IF($D$2<0.5,(D154*470/50*$B$2)*($D$2+0.2),(D154*470/50*$B$2*$D$2)) -> 106.6524 | E167: =IF($D$2<0.5,(D154*400/50*$B$2)*($D$2+0.2),(D154*400/50*$B$2*$D$2)) -> 90.768 | F167: 197.4204 | G167: Wh | H167: 131.3296 | I167: 0 | J167: 197.4204
A168: 12 | B168: =B154*300 -> 394.5 | C168: Wh | D168: =IF($D$2<0.5,(D154*460/50*$B$2)*($D$2+0.2),(D154*460/50*$B$2)) -> 104.3832 | E168: =IF($D$2<0.5,(D154*460/50*$B$2)*($D$2+0.2),(D154*460/50*$B$2)) -> 104.3832 | F168: 208.7664 | G168: Wh | H168: 185.7336 | I168: 0 | J168: 208.7664
A169: 13 | B169: =B154*325 -> 427.375 | C169: Wh | D169: =IF($D$2<0.5,(D154*460/50*$B$2)*($D$2+0.2),(D154*460*$D$2/50*$B$2)) -> 104.3832 | E169: =IF($D$2<0.5,(D154*470/50*$B$2)*($D$2+0.2),(D154*470/50*$B$2*$D$2)) -> 106.6524 | F169: 211.0356 | G169: Wh | H169: 216.3394 | I169: 0 | J169: 211.0356
A170: 14 | B170: =B154*200 -> 263 | C170: Wh | D170: =IF($D$2<0.5,(D154*400/50*$B$2)*($D$2+0.2),(D154*400/50*$B$2)) -> 90.768 | E170: =IF($D$2<0.5,(D154*470/50*$B$2)*($D$2+0.2),(D154*470/50*$B$2)) -> 106.6524 | F170: 197.4204 | G170: Wh | H170: 65.5796 | I170: 0 | J170: 197.4204
A171: 15 | B171: =B154*160 -> 210.4 | C171: Wh | D171: =IF($D$2<0.5,(D154*320/50*$B$2)*($D$2+0.2),(D154*320/50*$B$2*$D$2)) -> 72.6144 | E171: =IF($D$2<0.5,(D154*460/50*$B$2)*($D$2+0.2),(D154*460/50*$B$2*$D$2)) -> 104.3832 | F171: 176.9976 | G171: Wh | H171: 33.4024 | I171: 0 | J171: 176.9976
A172: 16 | B172: =B154*175 -> 230.125 | C172: Wh | D172: =IF($D$2<0.5,(D154*250/50*$B$2)*($D$2+0.2),(D154*250/50*$B$2)) -> 56.73 | E172: =IF($D$2<0.5,(D154*460/50*$B$2)*($D$2+0.2),(D154*460/50*$B$2)) -> 104.3832 | F172: 161.1132 | G172: Wh | H172: 69.0118 | I172: 0 | J172: 161.1132
A173: 17 | B173: =B154*210 -> 276.15 | C173: Wh | D173: =IF($D$2<0.5,(D154*180/50*$B$2)*($D$2+0.2),(D154*180/50*$B$2*$D$2)) -> 40.8456 | E173: =IF($D$2<0.5,(D154*400/50*$B$2)*($D$2+0.2),(D154*400/50*$B$2*$D$2)) -> 90.768 | F173: 131.6136 | G173: Wh | H173: 144.5364 | I173: =IF(IF(H173<0,(I172+(H173*-1)),IF(H173<I172,I172-H173,IF(H173>I172,0,I172)))>($H$2*1000),($H$2*1000),(IF(H173<0,(I172+(H173*-1)),IF(H173<I172,I172-H173,IF(H173>I172,0,I172))))) -> 0 | J173: 131.6136
A174: 18 | B174: =B154*205 -> 269.575 | C174: Wh | D174: =IF($D$2<0.5,(D154*80/50*$B$2)*($D$2+0.2),(D154*80/50*$B$2)) -> 18.1536 | E174: =IF($D$2<0.5,(D154*320/50*$B$2)*($D$2+0.2),(D154*320/50*$B$2)) -> 72.6144 | F174: 90.768 | G174: Wh | H174: 178.807 | I174: 0 | J174: 90.768
A175: 19 | B175: =B154*275 -> 361.625 | C175: Wh | E175: =IF($D$2<0.5,(D154*250/50*$B$2)*($D$2+0.2),(D154/50*$B$2*250*$D$2)) -> 56.73 | F175: 56.73 | G175: Wh | H175: 304.895 | I175: 0 | J175: 56.73
A176: 20 | B176: =B154*350 -> 460.25 | C176: Wh | E176: =IF($D$2<0.5,(D154*180/50*$B$2)*($D$2+0.2),(D154*180/50*$B$2)) -> 40.8456 | F176: 40.8456 | G176: Wh | H176: 419.4044 | I176: 0 | J176: =IF((IF(F176>B176,B176,F176)+(I176-I175))>0,(IF(F176>B176,B176,F176)+(I176-I175)),0) -> 40.8456
A177: 21 | B177: =B154*400 -> 526 | C177: Wh | E177: =IF($D$2<0.5,(D154*80/50*$B$2)*($D$2+0.2),(D154*80*$D$2/50*$B$2)) -> 18.1536 | F177: 18.1536 | G177: Wh | H177: 507.8464 | I177: 0 | J177: =IF((IF(F177>B177,B177,F177)+(I177-I176))>0,(IF(F177>B177,B177,F177)+(I177-I176)),0) -> 18.1536
A178: 22 | B178: =B154*325 -> 427.375 | C178: Wh | G178: Wh | H178: 427.375 | I178: 0 | J178: 0
A179: 23 | B179: =B154*100 -> 131.5 | C179: Wh | G179: Wh | H179: 131.5 | I179: =IF(IF(H179<0,(I178+(H179*-1)),IF(H179<I178,I178-H179,IF(H179>I178,0,I178)))>($H$2*1000),($H$2*1000),(IF(H179<0,(I178+(H179*-1)),IF(H179<I178,I178-H179,IF(H179>I178,0,I178))))) -> 0 | J179: 0
A180: Za den: | B180: =SUM(B156:B179)/1000 -> 6.312 | C180: kWh | E180: Za den: | F180: =SUM(F160:F179)/1000 -> 2.1693552 | G180: kWh | I180: Za den: | J180: =SUM(J156:J179)/1000 -> 2.1693552 | K180: kWh
A181: Měsíčně: | B181: =B180*30.5/1000 -> 0.192516 | C181: MWh | E181: Měsíčně: | F181: =F180*30.5/1000 -> 0.0661653336 | G181: MWh | I181: Měsíčně: | J181: =J180*30.5/1000 -> 0.0661653336 | K181: MWh
A184: Ročně: | B184: =B180*365/1000 -> 2.30388 | C184: MWh | E184: Ročně: | F184: =(F181+F151+F121+F91+F61+F31)*2 -> 0.5318839075 | G184: MWh | I184: Ročně: | J184: =(J181+J151+J121+J91+J61+J31)*2 -> 0.5318839075 | K184: MWh
B185: 100 | C185: % | F185: =100/B184*F184 -> 23.08644146 | G185: % | J185: =100/B184*J184 -> 23.08644146 | K185: %
A186: Ročně: | B186: =B184*1000*J2 -> 21195.696 | I186: Roční úspora: | J186: =J184*1000*J2 -> 4893.331949
I187: Návratnost: | J187: =N2/J186 -> 3.269755693 | K187: roků
A189: [1] Musí vykrýt špičky maximálního okamžitého ale krátkodobého výkonu (například rychlovarné konvice, nahřívání vody v pračce, použití výkoného fénu apod.)
A190: [2] 9,2 Kč/kWh dle kalkulačky PRE 10.4.2024
A191: [3] Pokud bude inflace 0% a cena elektřiny bude stále stejná.
A192: [4] | B192: Slunečné dny: 60-70 dní v roce
B193: Polojasné dny: 100-120 dní v roce
B194: Zatažené dny: 140-150 dní v roce
